fUST/lending_fUST_20240221
["ID","MTS","AMOUNT","RATE_DAILY","PERIOD"]
[314642408,1708495839928,-2827.8,0.00019809,2]
[314642409,1708495839937,-6244.06,0.00019809,2]
[314642411,1708495839946,-199.49719013,0.00019809,2]
[314642413,1708495839957,-500.0,0.0001981,2]
[314642416,1708495839966,-500.0,0.0001981,2]
[314642417,1708495839976,-583.13240206,0.0001981,2]
[314642418,1708495839987,-500.0,0.0001981,2]
[314642419,1708495839998,-500.64240914,0.0001981,2]
[314642420,1708495840008,-500.0,0.0001981,2]
[314642421,1708495840017,-586.74,0.0001981,2]
[314642422,1708495840027,-500.0,0.0001981,2]
[314642423,1708495840038,-500.0,0.0001981,2]
[314642424,1708495840046,-187.60310888,0.0001981,2]
[314642425,1708495840055,-500.0,0.0001981,2]
[314642426,1708495840064,-500.0,0.0001981,2]
[314642427,1708495840073,-500.0,0.0001981,2]
[314642428,1708495840082,-500.28548922,0.0001981,2]
[314642429,1708495840092,-600.41345026,0.0001981,2]
[314642430,1708495840101,-500.20516533,0.0001981,2]
[314642431,1708495840110,-616.59730601,0.0001981,2]
[314642432,1708495840120,-500.0,0.0001981,2]
[314642433,1708495840129,-500.37710201,0.0001981,2]
[314642434,1708495840138,-497.96270916,0.0001981,2]
[314642435,1708495840147,-431.08821776,0.0001981,2]
[314642436,1708495840157,-561.58798467,0.0001981,2]
[314642437,1708495840166,-500.0,0.0001981,2]
[314642438,1708495840176,-1059.67,0.0001981,2]
[314642439,1708495840186,-166.06107794,0.0001981,2]
[314642440,1708495840198,-500.0,0.0001981,2]
[314642441,1708495840210,-500.0,0.0001981,2]
[314642442,1708495840218,-500.0,0.0001981,2]
[314642443,1708495840228,-500.0,0.0001981,2]
[314642444,1708495840238,-500.0,0.0001981,2]
[314642445,1708495840247,-1530.45,0.0001981,2]
[314642446,1708495840257,-500.0,0.0001981,2]
[314642447,1708495840266,-260.64937657,0.0001981,2]
[314642448,1708495840275,-159.30524834,0.0001981,2]
[314642449,1708495840285,-500.0,0.0001981,2]
[314642450,1708495840295,-642.79,0.0001981,2]
[314642451,1708495840306,-500.0,0.0001981,2]
[314642452,1708495840315,-500.1772025,0.0001981,2]
[314642453,1708495840326,-500.08305715,0.0001981,2]
[314642454,1708495840336,-500.0,0.0001981,2]
[314642455,1708495840345,-500.07480666,0.0001981,2]
[314642456,1708495840355,-500.0,0.0001981,2]
[314642457,1708495840365,-500.0,0.0001981,2]
[314642458,1708495840375,-574.08020889,0.0001981,2]
[314642459,1708495840385,-500.0,0.0001981,2]
[314642460,1708495840394,-500.0,0.0001981,2]
[314642461,1708495840403,-500.05957304,0.0001981,2]
[314642462,1708495840413,-500.0,0.0001981,2]
[314642463,1708495840422,-500.0,0.0001981,2]
[314642464,1708495840431,-500.0,0.0001981,2]
[314642465,1708495840440,-500.05002225,0.0001981,2]
[314642466,1708495840450,-699.1,0.0001981,2]
[314642467,1708495840459,-500.0,0.0001981,2]
[314642468,1708495840469,-500.0,0.0001981,2]
[314642469,1708495840478,-500.13299627,0.0001981,2]
[314642470,1708495840487,-500.0,0.0001981,2]
[314642471,1708495840496,-500.0,0.0001981,2]
[314642472,1708495840507,-632.43,0.0001981,2]
[314642473,1708495840515,-500.0,0.0001981,2]
[314642474,1708495840525,-500.23913753,0.0001981,2]
[314642475,1708495840534,-623.34,0.0001981,2]
[314642476,1708495840543,-500.0,0.0001981,2]
[314642477,1708495840553,-500.0,0.0001981,2]
[314642478,1708495840562,-500.0,0.0001981,2]
[314642479,1708495840571,-500.0,0.0001981,2]
[314642480,1708495840580,-500.0,0.0001981,2]
[314642481,1708495840589,-404.94508815,0.0001981,2]
[314642482,1708495840598,-500.0,0.0001981,2]
[314642483,1708495840608,-500.0,0.0001981,2]
[314642484,1708495840617,-500.0,0.0001981,2]
[314642485,1708495840626,-744.57,0.0001981,2]
[314642486,1708495840635,-500.0,0.0001981,2]
[314642487,1708495840644,-500.0,0.0001981,2]
[314642488,1708495840653,-500.0,0.0001981,2]
[314642489,1708495840663,-500.0,0.0001981,2]
[314642490,1708495840672,-500.0,0.0001981,2]
[314642491,1708495840682,-500.0,0.0001981,2]
[314642493,1708495840692,-265.31610334,0.0001981,2]
[314642494,1708495840701,-2692.11,0.0001981,2]
[314642495,1708495840710,-500.0,0.0001981,2]
[314642496,1708495840719,-500.0,0.0001981,2]
[314642497,1708495840728,-864.62,0.0001981,2]
[314642498,1708495840738,-500.0,0.0001981,2]
[314642499,1708495840746,-500.0,0.0001981,2]
[314642500,1708495840757,-868.34,0.0001981,2]
[314642501,1708495840766,-500.0,0.0001981,2]
[314642502,1708495840775,-155.12588784,0.0001981,2]
[314642503,1708495840784,-500.0,0.0001981,2]
[314642504,1708495840794,-500.0,0.0001981,2]
[314642505,1708495840804,-486.56466406,0.0001981,2]
[314642506,1708495840814,-500.0,0.0001981,2]
[314642507,1708495840823,-500.0,0.0001981,2]
[314642508,1708495840833,-500.0,0.0001981,2]
[314642509,1708495840844,-500.17034226,0.0001981,2]
[314642510,1708495840854,-500.0,0.0001981,2]
[314642511,1708495840864,-500.0,0.0001981,2]
[314642512,1708495840873,-500.0,0.0001981,2]
[314642513,1708495840882,-500.0,0.0001981,2]
[314642514,1708495840891,-500.0,0.0001981,2]
[314642515,1708495840900,-500.0,0.0001981,2]
[314642516,1708495840910,-667.87,0.0001981,2]
[314642517,1708495840920,-500.0,0.0001981,2]
[314642518,1708495840929,-500.0,0.0001981,2]
[314642519,1708495840938,-500.0,0.0001981,2]
[314642520,1708495840947,-500.0,0.0001981,2]
[314642521,1708495840956,-451.38232102,0.0001981,2]
[314642522,1708495840965,-500.0,0.0001981,2]
[314642523,1708495840975,-500.0,0.0001981,2]
[314642524,1708495840985,-500.0,0.0001981,2]
[314642525,1708495840996,-598.64,0.0001981,2]
[314642526,1708495841005,-500.0,0.0001981,2]
[314642527,1708495841014,-500.0,0.0001981,2]
[314642528,1708495841026,-500.0,0.0001981,2]
[314642529,1708495841035,-488.39234827,0.0001981,2]
[314642530,1708495841045,-500.0,0.0001981,2]
[314642531,1708495841054,-200.0,0.0001981,2]
[314642532,1708495841064,-504.14747421,0.0001981,2]
[314642533,1708495841075,-758.99,0.0001981,2]
[314642534,1708495841085,-1286.78,0.0001981,2]
[314642535,1708495841094,-500.0,0.0001981,2]
[314642536,1708495841105,-500.0,0.0001981,2]
[314642537,1708495841114,-500.0,0.0001981,2]
[314642538,1708495841123,-601.06,0.0001981,2]
[314642539,1708495841133,-500.0,0.0001981,2]
[314642540,1708495841142,-500.0,0.0001981,2]
[314642541,1708495841153,-500.0,0.0001981,2]
[314642542,1708495841162,-500.0,0.0001981,2]
[314642543,1708495841173,-500.0,0.0001981,2]
[314642544,1708495841182,-500.0,0.0001981,2]
[314642545,1708495841195,-500.0,0.0001981,2]
[314642546,1708495841204,-615.71848017,0.0001981,2]
[314642547,1708495841214,-500.0,0.0001981,2]
[314642548,1708495841225,-630.66,0.0001981,2]
[314642549,1708495841234,-19547.81,0.0001981,2]
[314642550,1708495841243,-3742.39,0.0001981,2]
[314642551,1708495841252,-500.0,0.0001981,2]
[314642552,1708495841263,-616.87,0.0001981,2]
[314642553,1708495841275,-500.0,0.0001981,2]
[314642554,1708495841284,-2836.82,0.0001981,2]
[314642555,1708495841293,-500.0,0.0001981,2]
[314642556,1708495841303,-337.17492366,0.0001981,2]
[314642562,1708495842497,-162.82507634,0.0001981,2]
[314642563,1708495842509,-458.77492366,0.0001981,2]
[314642572,1708495843224,-1550.63,0.00019786,3]
[314642573,1708495843234,-500.0,0.00019795,2]
[314642574,1708495843244,-500.0,0.00019797,2]
[314642575,1708495843253,-500.0,0.00019797,2]
[314642576,1708495843264,-500.0,0.00019797,2]
[314642577,1708495843277,-2078.67601698,0.0001981,2]
[314642588,1708495845851,-720.75067691,0.00019797,2]
[314642589,1708495846483,-775.96932309,0.00019797,2]
[314642590,1708495846493,-1658.94905936,0.0001981,2]
[314642591,1708495846502,-500.0,0.0001981,2]
[314642592,1708495846513,-359.50468921,0.0001981,2]
[314642593,1708495846522,-500.23754538,0.0001981,2]
[314642594,1708495846532,-500.0,0.0001981,2]
[314642595,1708495846542,-563.91,0.0001981,2]
[314642596,1708495846551,-500.0,0.00019811,2]
[314642597,1708495846561,-500.0,0.00019811,2]
[314642598,1708495846571,-637.83530305,0.00019811,2]
[314642599,1708495846581,-500.0,0.00019811,2]
[314642600,1708495846591,-500.0,0.00019811,2]
[314642601,1708495846600,-601.28613285,0.00019811,2]
[314642602,1708495846609,-500.0,0.00019811,2]
[314642603,1708495846618,-500.51468751,0.00019811,2]
[314642604,1708495846628,-500.0,0.00019811,2]
[314642605,1708495846637,-481.36459625,0.00019811,2]
[314642606,1708495846647,-568.77880917,0.00019811,2]
[314642607,1708495846656,-572.95798927,0.00019811,2]
[314642608,1708495846665,-500.0,0.00019811,2]
[314642609,1708495846675,-500.0,0.00019811,2]
[314642610,1708495846684,-554.16,0.00019811,2]
[314642611,1708495846693,-282.88303232,0.00019811,2]
[314642612,1708495846702,-2836.82,0.00019811,2]
[314642613,1708495846712,-2836.82,0.00019811,2]
[314642614,1708495846721,-2836.82,0.00019812,2]
[314642615,1708495846730,-2836.82,0.00019812,2]
[314642616,1708495846739,-2836.82,0.00019907,2]
[314642617,1708495846748,-1517.59235768,0.00019908,2]
[314642618,1708495846757,-2836.82,0.00019908,2]
[314642619,1708495846768,-10451.50614662,0.0001994,2]
[314642620,1708495846777,-300.0,0.00019967,2]
[314642621,1708495846786,-77824.2607425,0.00019985,2]
[314642622,1708495846798,-132923.82275067,0.00019985,2]
[314642623,1708495846807,-2461.67001226,0.00020013,2]
[314642624,1708495846817,-1273.04,0.00020069,2]
[314642625,1708495846826,-500.0,0.00020069,2]
[314642626,1708495846834,-1205.34,0.0002007,2]
[314642627,1708495846843,-4425.43,0.0002007,2]
[314642628,1708495846853,-29371.23,0.0002007,2]
[314642629,1708495846862,-500.0,0.0002007,2]
[314642630,1708495846872,-500.0,0.0002007,2]
[314642631,1708495846881,-1658.69,0.0002007,2]
[314642632,1708495846891,-35547.27,0.0002007,2]
[314642633,1708495846900,-790.59,0.0002007,2]
[314642634,1708495846910,-500.0,0.0002007,2]
[314642635,1708495846919,-1286.61,0.0002007,2]
[314642636,1708495846930,-545.92,0.00020071,2]
[314642637,1708495846939,-500.0,0.00020071,2]
[314642638,1708495846949,-1239.18,0.00020071,2]
[314642639,1708495846958,-500.0,0.00020071,2]
[314642640,1708495846967,-500.0,0.00020071,2]
[314642641,1708495846976,-500.0,0.00020071,2]
[314642642,1708495846985,-500.65386408,0.00020071,2]
[314642643,1708495846995,-500.0,0.00020071,2]
[314642644,1708495847005,-500.0,0.00020071,2]
[314642645,1708495847015,-573.52,0.00020071,2]
[314642646,1708495847024,-396.36419202,0.00020071,2]
[314642647,1708495847033,-500.0,0.00020071,2]
[314642648,1708495847043,-500.0,0.00020071,2]
[314642649,1708495847052,-500.0,0.00020071,2]
[314642650,1708495847060,-500.0,0.00020071,2]
[314642651,1708495847069,-500.0,0.00020071,2]
[314642652,1708495847078,-500.0,0.00020071,2]
[314642653,1708495847087,-500.0,0.00020071,2]
[314642654,1708495847097,-554.01,0.00020071,2]
[314642655,1708495847106,-1114.21,0.00020071,2]
[314642656,1708495847116,-500.0,0.00020071,2]
[314642657,1708495847125,-500.3721384,0.00020071,2]
[314642658,1708495847135,-500.0,0.00020071,2]
[314642659,1708495847144,-500.0,0.00020071,2]
[314642660,1708495847153,-500.0,0.00020071,2]
[314642661,1708495847163,-500.0,0.00020071,2]
[314642662,1708495847172,-500.0,0.00020071,2]
[314642663,1708495847181,-805.64,0.00020071,2]
[314642664,1708495847196,-500.0,0.00020071,2]
[314642665,1708495847205,-500.0,0.00020071,2]
[314642666,1708495847215,-500.0,0.00020071,2]
[314642667,1708495847224,-500.0,0.00020071,2]
[314642668,1708495847234,-500.0,0.00020071,2]
[314642669,1708495847244,-2393.41,0.00020071,2]
[314642670,1708495847254,-500.0,0.00020071,2]
[314642671,1708495847264,-640.89509304,0.00020071,2]
[314642672,1708495847273,-500.0,0.00020071,2]
[314642673,1708495847283,-500.0,0.00020071,2]
[314642674,1708495847292,-500.0,0.00020071,2]
[314642675,1708495847302,-500.0,0.00020071,2]
[314642676,1708495847311,-500.0,0.00020071,2]
[314642677,1708495847321,-2082.43,0.00020071,2]
[314642678,1708495847333,-500.0,0.00020071,2]
[314642679,1708495847342,-500.0,0.00020071,2]
[314642680,1708495847351,-779.4,0.00020071,2]
[314642681,1708495847360,-500.0,0.00020071,2]
[314642682,1708495847370,-500.0,0.00020071,2]
[314642683,1708495847380,-1072.17,0.00020071,2]
[314642684,1708495847389,-500.0,0.00020071,2]
[314642685,1708495847399,-500.0,0.00020071,2]
[314642686,1708495847408,-2492.1,0.00020071,2]
[314642687,1708495847419,-500.0,0.00020071,2]
[314642688,1708495847430,-500.0,0.00020071,2]
[314642689,1708495847440,-500.0,0.00020071,2]
[314642690,1708495847450,-500.0,0.00020071,2]
[314642691,1708495847460,-500.0,0.00020071,2]
[314642692,1708495847468,-756.7,0.00020071,2]
[314642693,1708495847477,-1210.21,0.00020071,2]
[314642694,1708495847486,-500.0,0.00020071,2]
[314642695,1708495847495,-500.0,0.00020071,2]
[314642696,1708495847505,-1184.39,0.00020071,2]
[314642697,1708495847515,-512.58,0.00020071,2]
[314642698,1708495847524,-213.63256075,0.00020071,2]
[314642699,1708495847534,-500.0,0.00020071,2]
[314642700,1708495847544,-266.20144439,0.00020071,2]
[314642701,1708495847554,-151.0,0.00020071,2]
[314642702,1708495847563,-500.0,0.00020071,2]
[314642703,1708495847572,-521.0039513,0.00020071,2]
[314642704,1708495847582,-500.0,0.00020071,2]
[314642705,1708495847591,-500.0,0.00020071,2]
[314642706,1708495847600,-500.0,0.00020071,2]
[314642707,1708495847610,-2978.56,0.00020071,2]
[314642708,1708495847619,-500.0,0.00020071,2]
[314642709,1708495847629,-500.0,0.00020071,2]
[314642710,1708495847638,-4108.32,0.00020071,2]
[314642711,1708495847647,-500.0,0.00020071,2]
[314642712,1708495847656,-500.0,0.00020071,2]
[314642713,1708495847665,-2712.98,0.00020071,2]
[314642714,1708495847675,-500.0,0.00020071,2]
[314642715,1708495847684,-550.21573666,0.00020071,2]
[314642716,1708495847693,-500.0,0.00020071,2]
[314642717,1708495847703,-500.0,0.00020071,2]
[314642718,1708495847713,-775.09,0.00020071,2]
[314642719,1708495847722,-400.32969916,0.00020071,2]
[314642720,1708495847731,-500.0,0.00020071,2]
[314642721,1708495847740,-500.0,0.00020071,2]
[314642722,1708495847750,-1486.38,0.00020071,2]
[314642723,1708495847760,-500.0,0.00020071,2]
[314642724,1708495847771,-500.0,0.00020071,2]
[314642725,1708495847780,-500.0,0.00020071,2]
[314642726,1708495847788,-547.78,0.00020071,2]
[314642727,1708495847797,-500.0,0.00020071,2]
[314642728,1708495847806,-500.0,0.00020071,2]
[314642729,1708495847816,-500.23506128,0.00020071,2]
[314642730,1708495847825,-500.0,0.00020071,2]
[314642731,1708495847834,-500.0,0.00020071,2]
[314642732,1708495847843,-500.0,0.00020071,2]
[314642733,1708495847852,-500.0,0.00020071,2]
[314642734,1708495847861,-500.0,0.00020071,2]
[314642735,1708495847871,-500.0,0.00020071,2]
[314642736,1708495847881,-500.0,0.00020071,2]
[314642737,1708495847890,-647.97,0.00020071,2]
[314642738,1708495847899,-500.0,0.00020071,2]
[314642739,1708495847909,-500.0,0.00020071,2]
[314642740,1708495847918,-500.0,0.00020071,2]
[314642741,1708495847928,-500.0,0.00020071,2]
[314642742,1708495847937,-500.0,0.00020071,2]
[314642743,1708495847946,-500.0,0.00020071,2]
[314642744,1708495847955,-500.0,0.00020071,2]
[314642745,1708495847965,-1496.72,0.00020071,2]
[314642746,1708495847973,-255.29515555,0.00020082,2]
[314642747,1708495847983,-196.03695153,0.00020082,2]
[314642748,1708495847992,-1192.40889352,0.00020082,2]
[314642749,1708495848001,-500.0,0.00020082,2]
[314642750,1708495848011,-500.0,0.00020082,2]
[314642751,1708495848024,-2783.46,0.00020082,2]
[314642752,1708495848033,-500.0,0.00020082,2]
[314642753,1708495848042,-12792.6,0.00020082,2]
[314642754,1708495848052,-500.0,0.00020082,2]
[314642755,1708495848061,-19246.34,0.00020082,2]
[314642756,1708495848070,-5436.72,0.00020082,2]
[314642757,1708495848079,-500.0,0.00020082,2]
[314642758,1708495848088,-1013.59,0.00020082,2]
[314642759,1708495848097,-500.0,0.00020082,2]
[314642760,1708495848106,-4183.73,0.00020082,2]
[314642761,1708495848115,-7270.49,0.00020082,2]
[314642762,1708495848124,-500.0,0.00020082,2]
[314642763,1708495848133,-842.2,0.00020082,2]
[314642764,1708495848142,-5143.73,0.00020082,2]
[314642765,1708495848151,-500.0,0.00020082,2]
[314642766,1708495848160,-500.0,0.00020082,2]
[314642767,1708495848168,-575.54006568,0.00020083,2]
[314642768,1708495848178,-507.11,0.00020083,2]
[314642769,1708495848187,-541.2,0.00020083,2]
[314642770,1708495848197,-558.16,0.00020083,2]
[314642771,1708495848209,-500.0,0.00020083,2]
[314642772,1708495848218,-1331.63,0.00020083,2]
[314642773,1708495848227,-500.0,0.00020083,2]
[314642774,1708495848236,-542.79,0.00020083,2]
[314642775,1708495848246,-369.51077671,0.00020083,2]
[314642776,1708495848256,-500.0,0.00020083,2]
[314642777,1708495848268,-500.0,0.00020083,2]
[314642778,1708495848278,-4775.9,0.00020083,2]
[314642779,1708495848288,-500.0,0.00020083,2]
[314642780,1708495848299,-500.0,0.00020083,2]
[314642781,1708495848308,-500.0,0.00020083,2]
[314642782,1708495848317,-1000.0,0.00020083,2]
[314642783,1708495848326,-721.33,0.00020083,2]
[314642784,1708495848462,-500.0,0.00020083,2]
[314642785,1708495848471,-500.0,0.00020083,2]
[314642786,1708495848481,-500.0,0.00020083,2]
[314642787,1708495848491,-500.0,0.00020083,2]
[314642788,1708495848500,-2836.82,0.00020083,2]
[314642789,1708495848510,-1136.55,0.00020083,2]
[314642790,1708495848522,-500.0,0.00020083,2]
[314642791,1708495848531,-500.0,0.00020083,2]
[314642792,1708495848540,-5830.18,0.00020083,2]
[314642793,1708495848549,-589.18654455,0.00020083,2]
[314642794,1708495848559,-500.0,0.00020083,2]
[314642795,1708495848568,-2827.8,0.00020083,2]
[314642796,1708495848578,-6244.06,0.00020083,2]
[314642797,1708495848588,-13775.15135791,0.00020083,2]
[314642798,1708495848598,-500.0,0.00020084,2]
[314642799,1708495848607,-560.41708994,0.00020084,2]
[314642800,1708495848617,-500.29127605,0.00020084,2]
[314642801,1708495848626,-500.0,0.00020084,2]
[314642802,1708495848635,-578.46803286,0.00020084,2]
[314642803,1708495848644,-500.0,0.00020084,2]
[314642804,1708495848653,-500.0,0.00020084,2]
[314642805,1708495848663,-500.0,0.00020084,2]
[314642806,1708495848672,-500.0,0.00020084,2]
[314642807,1708495848682,-500.0,0.00020084,2]
[314642808,1708495848691,-586.74,0.00020084,2]
[314642809,1708495848700,-500.0,0.00020084,2]
[314642810,1708495848710,-471.06527368,0.00020084,2]
[314642811,1708495848719,-500.0,0.00020084,2]
[314642812,1708495848729,-509.16243946,0.00020084,2]
[314642813,1708495848738,-500.75469173,0.00020084,2]
[314642814,1708495848748,-1059.67,0.00020084,2]
[314642815,1708495848758,-500.1719501,0.00020084,2]
[314642816,1708495848770,-500.0,0.00020084,2]
[314642817,1708495848779,-500.0,0.00020084,2]
[314642818,1708495848789,-500.0,0.00020084,2]
[314642819,1708495848799,-1530.45,0.00020084,2]
[314642820,1708495848808,-500.44631674,0.00020084,2]
[314642821,1708495848818,-642.79,0.00020084,2]
[314642822,1708495848827,-500.18055875,0.00020084,2]
[314642823,1708495848836,-500.0,0.00020084,2]
[314642824,1708495848845,-500.0,0.00020084,2]
[314642825,1708495848854,-500.0,0.00020084,2]
[314642826,1708495848863,-500.0,0.00020084,2]
[314642827,1708495848872,-500.0,0.00020084,2]
[314642828,1708495848881,-300.64650961,0.00020084,2]
[314642829,1708495848891,-699.1,0.00020084,2]
[314642830,1708495848900,-500.0,0.00020084,2]
[314642831,1708495848908,-500.0,0.00020084,2]
[314642832,1708495848917,-500.0,0.00020084,2]
[314642833,1708495848926,-500.0,0.00020084,2]
[314642834,1708495848935,-632.43,0.00020084,2]
[314642835,1708495848946,-500.0,0.00020084,2]
[314642836,1708495848955,-623.34,0.00020084,2]
[314642837,1708495848964,-500.0,0.00020084,2]
[314642838,1708495848973,-249.55499383,0.00020084,2]
[314642839,1708495848982,-500.0,0.00020084,2]
[314642840,1708495848991,-500.0,0.00020084,2]
[314642841,1708495849001,-500.0,0.00020084,2]
[314642842,1708495849010,-500.0,0.00020084,2]
[314642843,1708495849021,-579.70645628,0.00020084,2]
[314642844,1708495849031,-500.0,0.00020084,2]
[314642845,1708495849040,-744.57,0.00020084,2]
[314642846,1708495849050,-500.0,0.00020084,2]
[314642847,1708495849059,-500.0,0.00020084,2]
[314642848,1708495849069,-500.0,0.00020084,2]
[314642849,1708495849078,-500.0,0.00020084,2]
[314642850,1708495849087,-500.0,0.00020084,2]
[314642851,1708495849096,-2692.11,0.00020084,2]
[314642852,1708495849106,-500.0,0.00020084,2]
[314642853,1708495849114,-500.0,0.00020084,2]
[314642854,1708495849124,-864.62,0.00020084,2]
[314642855,1708495849133,-500.0,0.00020084,2]
[314642856,1708495849143,-500.0,0.00020084,2]
[314642857,1708495849153,-868.34,0.00020084,2]
[314642858,1708495849162,-500.0,0.00020084,2]
[314642859,1708495849171,-500.0,0.00020084,2]
[314642860,1708495849180,-512.99170163,0.00020084,2]
[314642861,1708495849190,-500.0,0.00020084,2]
[314642862,1708495849200,-500.0,0.00020084,2]
[314642863,1708495849211,-500.0,0.00020084,2]
[314642864,1708495849220,-500.0,0.00020084,2]
[314642865,1708495849231,-500.0,0.00020084,2]
[314642866,1708495849242,-500.0,0.00020084,2]
[314642867,1708495849252,-500.0,0.00020084,2]
[314642868,1708495849261,-667.87,0.00020084,2]
[314642869,1708495849272,-500.0,0.00020084,2]
[314642870,1708495849282,-404.798119,0.00020084,2]
[314642871,1708495849292,-500.0,0.00020084,2]
[314642872,1708495849301,-500.0,0.00020084,2]
[314642873,1708495849310,-500.0,0.00020084,2]
[314642874,1708495849320,-500.0,0.00020084,2]
[314642875,1708495849329,-500.0,0.00020084,2]
[314642876,1708495849338,-598.64,0.00020084,2]
[314642877,1708495849348,-500.0,0.00020084,2]
[314642878,1708495849358,-500.0,0.00020084,2]
[314642879,1708495849367,-500.0,0.00020084,2]
[314642880,1708495849377,-200.0,0.00020084,2]
[314642881,1708495849387,-758.99,0.00020084,2]
[314642882,1708495849397,-1286.78,0.00020084,2]
[314642883,1708495849405,-500.0,0.00020084,2]
[314642884,1708495849415,-500.0,0.00020084,2]
[314642885,1708495849424,-500.0,0.00020084,2]
[314642886,1708495849434,-601.06,0.00020084,2]
[314642887,1708495849443,-338.45851319,0.00020084,2]
[314642888,1708495849452,-500.22785792,0.00020084,2]
[314642889,1708495849461,-500.14712861,0.00020084,2]
[314642890,1708495849470,-159.5270364,0.00020084,2]
[314642891,1708495849479,-461.00189497,0.00020084,2]
[314642892,1708495849489,-500.0,0.00020084,2]
[314642893,1708495849498,-500.0,0.00020084,2]
[314642894,1708495849507,-630.66,0.00020084,2]
[314642895,1708495849519,-5351.96819121,0.00020084,2]
[314642897,1708496143406,690.26367565,0.000189,2]
[314642904,1708496744959,847.94091254,0.000189,2]
[314642986,1708497032012,-155.19399249,0.00019553,2]
[314642987,1708497032021,-691.36899456,0.00019554,2]
[314642988,1708497032030,-524.79095275,0.00019555,2]
[314642989,1708497032039,-171.58442521,0.0001956,2]
[314642990,1708497032048,-2750.17430634,0.00019581,2]
[314642991,1708497032057,-356.67967186,0.00019596,2]
[314642992,1708497032066,-356.67967183,0.00019621,2]
[314642993,1708497032075,-356.67967183,0.00019646,2]
[314642994,1708497032084,-356.67967183,0.0001967,2]
[314642995,1708497032093,-300.0,0.00019684,2]
[314642996,1708497032102,-1634.6,0.00019685,3]
[314642997,1708497032111,-2821.81,0.00019685,3]
[314642998,1708497032120,-2351.51,0.00019685,3]
[314643022,1708497032332,-8790.48840533,0.00019686,2]
[314643024,1708497032348,-226.42,0.00019686,3]
[314643026,1708497032358,-339.64,0.00019686,3]
[314643028,1708497032367,-169.82,0.00019686,3]
[314643030,1708497032376,-509.5,0.00019686,3]
[314643032,1708497032385,-28519.8,0.00019694,2]
[314643034,1708497032395,-500.0,0.00019694,2]
[314643036,1708497032404,-500.0,0.00019694,2]
[314643038,1708497032413,-2682.5,0.00019694,2]
[314643040,1708497032423,-356.67967183,0.00019695,2]
[314643042,1708497032432,-500.0,0.00019695,2]
[314643045,1708497032441,-1206.04,0.00019695,2]
[314643046,1708497032450,-4427.97,0.00019695,2]
[314643048,1708497032459,-500.0,0.00019695,2]
[314643050,1708497032468,-35576.92,0.00019695,2]
[314643052,1708497032477,-1660.16,0.00019695,2]
[314643054,1708497032486,-754.93,0.00019695,2]
[314643056,1708497032495,-500.0,0.00019695,2]
[314643058,1708497032505,-1230.35,0.00019695,2]
[314643061,1708497032519,-500.0,0.00019695,2]
[314643063,1708497032528,-2137.29,0.00019695,2]
[314643065,1708497032537,-500.0,0.00019695,2]
[314643066,1708497032546,-1218.38,0.00019696,2]
[314643068,1708497032556,-500.0,0.00019696,2]
[314643070,1708497032566,-572.48,0.00019696,2]